Cogmind - Beta 16 @@@ ROGUE MODE // 2025.11.03 @ 14:44:13 Player: Stump Result: Destroyed by as-09276 with Assembled F-torch Performance ------------- Evolutions (0) 0 Regions Visited (2) 400 Robots Destroyed (26) 130 Value Destroyed (459) 459 Prototype IDs (2) 40 Alien Tech Used (0) 0 Bonus (0) 0 TOTAL SCORE: 1029 Bonus ------- None Cogmind --------- Core Integrity 0/250 Matter 300/300 Energy 250/250 System Corruption 0% Temperature Cool (20) Movement Walking (260) Ox2 Location -10/Mines Parts ------- > --- POWER (1) -------- Ion Engine > --- PROPULSION (2) --- Aluminum Leg Aluminum Leg > --- UTILITY (2) ------ Medium Storage Unit Signal Interpreter > --- WEAPON (2) ------- Heavy Hammer Heavy Hammer > --- INVENTORY (10) --- Aluminum Leg Aluminum Leg Heat Sink Structural Scanner Assault Rifle Light Assault Rifle Grenade Launcher Mining Claw Peak State ------------ > --- POWER ------------ Ion Engine > --- PROPULSION ------- Aluminum Leg Aluminum Leg > --- UTILITY ---------- Medium Storage Unit Signal Interpreter > --- WEAPON ----------- Heavy Hammer Heavy Hammer > --- INVENTORY -------- Ion Engine Aluminum Leg Aluminum Leg Aluminum Leg Heat Sink Structural Scanner Assault Rifle Light Assault Rifle Grenade Launcher Mining Claw [Rating: 10] Favorites ----------- Power Light Ion Engine Engine Light Ion Engine Propulsion Aluminum Leg Leg Aluminum Leg Utility Medium Storage Unit Device Structural Scanner Storage Medium Storage Unit Processor Signal Interpreter Weapon Assault Rifle Energy Gun Medium Laser Ballistic Gun Assault Rifle Ballistic Cannon Light Cannon Impact Weapon Heavy Hammer Slashing Weapon Mining Claw Build | -11 -10 -10 ------- Run | Yrd Mat Min Slots Evolved . | . . . Power . | . . . Propulsion . | . . . Utility . | . . . Weapon . | . . . Parts Attached 23 | 7 15 1 Power 4 | 1 2 1 Engine 4 | 1 2 1 Core . | . . . Reactor . | . . . Propulsion 7 | 2 5 . Treads . | . . . Leg 7 | 2 5 . Wheel . | . . . Hover . | . . . Flight . | . . . Utility 4 | 1 3 . Device 1 | . 1 . Storage 2 | 1 1 . Processor 1 | . 1 . Hackware . | . . . Protection . | . . . Artifact . | . . . Weapon 8 | 3 5 . Energy Gun 1 | 1 . . Energy Cannon . | . . . Ballistic Gun 3 | 2 1 . Ballistic Cannon 1 | . 1 . Launcher . | . . . Special Weapon . | . . . Impact Weapon 2 | . 2 . Slashing Weapon 1 | . 1 . Piercing Weapon . | . . . Special Melee Weapon . | . . . Unidentified Prototypes . | . . . Parts Lost 5 | . 3 2 Power 2 | . 1 1 Propulsion 1 | . . 1 Utility . | . . . Weapon 2 | . 2 . Highest Loss Streak 2 | . 2 2 To Critical Strikes . | . . . Average Backups 8 | 2 8 9 Power . | . . . Propulsion 3 | 1 3 2 Utility 1 | . 1 2 Weapon 2 | . 2 4 Tool/Special . | . . . Unused Backups 9 | . 5 4 Power . | . . . Propulsion 6 | . 4 2 Utility 2 | . 1 1 Weapon 1 | . . 1 Tool/Special . | . . . Average Slot Usage (%) 97 | . 97 97 Engine 13 | . 13 12 Leg 27 | . 28 26 Device 9 | . 10 . Storage 14 | . 14 14 Processor 3 | . 2 14 Energy Gun 7 | . 7 . Ballistic Gun 10 | . 11 . Ballistic Cannon 3 | . 3 . Impact Weapon 3 | . 1 20 Slashing Weapon 2 | . 2 7 Peak Build Rating 10 | 6 10 9 Average Rating 7 | 4 7 8 On Entrance 5 | . 6 9 Avg Prop Armor Cover (%) . | . . . Naked Turns . | . . . Heaviest Build 21 | 12 20 21 Greatest Support 20 | 20 20 20 Greatest Overweight (x) 2 | . . 2 Average Overweight (x) . | . . . Largest Inventory Capacity 10 | 8 10 10 Average Capacity 9 | 6 9 10 Most Carried 10 | 6 10 10 Average Carried 8 | 3 9 9 Final Capacity 10 | 8 10 10 Final Carried 10 | 6 10 8 Class Distribution -------------------- 100% | Mutant Dominant Class ---------------- Mutant | -10/Materials Mutant | -10/Mines Resources | -11 -10 -10 ----------- Run | Yrd Mat Min Matter Collected 888 | 179 639 70 Remotely . | . . . Salvage Created 773 | . 707 66 Parts 46 | . 46 . Haulers Intercepted 1 | . 1 . Recyclers Shooed 1 | . 1 . Parts Field Recycled . | . . . Retrieved Matter . | . . . Parts Self-Destructed . | . . . Prevented . | . . . Parts Restored . | . . . Kills | -11 -10 -10 ------- Run | Yrd Mat Min Combat Hostiles Destroyed 26 | . 21 5 Melee 5 | . . 5 Guns 15 | . 15 . Cannons 6 | . 6 . Classes Destroyed 7 | . 6 1 Worker 1 | . 1 . Builder 1 | . 1 . Hauler 1 | . 1 . Recycler 2 | . 2 . Swarmer 12 | . 12 . Grunt 9 | . 9 . Assembled 5 | . . 5 Best Kill Streak 8 | . 8 5 Combat Bots Only 8 | . 8 5 Max Kills in Single Turn 1 | . 1 1 Gunslinging . | . . . Exploded . | . . . Melee 1 | . . 1 Uniques/NPCs Destroyed . | . . . Combat | -11 -10 -10 -------- Run | Yrd Mat Min Hostile Shots Fired 134 | . 110 24 Missed 34 | . 28 6 Hits 100 | . 82 18 Melee 7 | . . 7 Projectile 93 | . 82 11 Critical Strikes 1 | . 1 . Part Disruptions 1 | . . 1 Damage Taken 1154 | . 811 343 Core 250 | . 152 98 Absorbed by Shields . | . . . Core Remaining (%) 100 | 100 . . Volleys Fired 67 | . 67 . Largest 2 | . 2 . Hottest 70 | . 70 . Shots Fired 133 | . 133 . Gun 95 | . 95 . Cannon 38 | . 38 . Launcher . | . . . Special . | . . . Kinetic 104 | . 104 . Thermal 29 | . 29 . Explosive . | . . . Electromagnetic . | . . . Robot Hit Streak 9 | . 9 . Robot Miss Streak 4 | . 4 . Penetration Max . | . . . Secondary Targets 1 | . 1 . Max Gunslinging Chain 1 | . 1 . Shots Hit Robots 81 | . 72 9 Core Hits 38 | . 34 4 Critical Kills 1 | . . 1 Critical Parts Destroyed 2 | . . 2 Critical Strikes 6 | . 3 3 Burn 1 | . 1 . Blast 2 | . 2 . Smash 3 | . . 3 Melee Attacks 18 | . 3 15 Impact 15 | . 1 14 Slashing 3 | . 2 1 Piercing . | . . . Sneak Attacks . | . . . Combat Hostiles . | . . . Follow-up Attacks 1 | . . 1 Damage Inflicted 1438 | . 1042 396 Guns 651 | . 651 . Cannons 384 | . 384 . Explosions . | . . . Melee 396 | . . 396 Ramming 7 | . 7 . Kinetic 860 | . 860 . Thermal 175 | . 175 . Explosive . | . . . Electromagnetic . | . . . Impact 396 | . . 396 Slashing . | . . . Piercing . | . . . Highest Corruption . | . . . Average Corruption . | . . . Corruption Purged . | . . . Corruption Blocked . | . . . Overload Shots . | . . . Overflow Damage 91 | . . 91 Projectiles . | . . . Explosions . | . . . Melee 91 | . . 91 Knockbacks 7 | . 5 2 Impact 2 | . . 2 Kinetic 4 | . 4 . Secondary 1 | . 1 . Self-Inflicted Damage . | . . . Shots . | . . . Rammed . | . . . Targets Rammed 2 | . 2 . Kicked 2 | . 2 . Crushed . | . . . Highest Temperature 213 | . 213 . Average Temperature 69 | . 69 . Received Heat Transfer 337 | . 237 100 Siege Activations . | . . . Martial Activations . | . . . Shielding Activations . | . . . Robots Disrupted . | . . . Combat Hostiles . | . . . Robots Corrupted . | . . . Combat Hostiles . | . . . Parts Fried . | . . . Impact Corruptions 4 | . . 4 Robots Melted . | . . . Combat Hostiles . | . . . Parts Melted 1 | . 1 . Heat Transferred 592 | . 592 . Parts Sabotaged . | . . . Parts Stolen . | . . . Parts Stripped . | . . . Power Chain Reactions . | . . . Alert | -11 -10 -10 ------- Run | Yrd Mat Min Maximum Alert Level 1 | . 1 . Low Security (%) 61 | 100 55 100 Level 1 38 | . 44 . Level 2 . | . . . Level 3 . | . . . Level 4 . | . . . Level 5 . | . . . High Security . | . . . Max Security . | . . . Peak Influence 306 | . 306 70 Initial 70 | . . 70 Average 134 | . 153 34 Influence Increases 560 | . 560 . Destroy 0b10 Robot/C 420 | . 420 . Destroy 0b10 Robot/NC 25 | . 25 . Destroy Leader 72 | . 72 . Successful Hack 10 | . 10 . Destroy Structure 3 | . 3 . Lose Combat Pursuer 30 | . 30 . Influence Decreases 560 | . 380 180 Entered New Map 110 | . . 110 Time Decay 400 | . 350 50 Lost Part 50 | . 30 20 Squads Dispatched 2 | . 2 . Investigation 1 | . 1 . Extermination . | . . . Reinforcement 1 | . 1 . Assault . | . . . Garrison . | . . . Intercept . | . . . Searches Triggered . | . . . Construction Impeded . | . . . Haulers Reinforced . | . . . Active Scanning Responses . | . . . Cargo Convoy Interrupts . | . . . Stealth | -11 -10 -10 --------- Run | Yrd Mat Min Distress Signals 6 | . 6 . Communications Jammed . | . . . Distress Signals . | . . . Times Spotted 42 | . 35 7 Peak Tracking Total 7 | . 7 4 Tactical Retreats 1 | . 1 . Traps | -11 -10 -10 ------- Run | Yrd Mat Min Traps Triggered 2 | . 2 . Indirectly . | . . . Trap Hack Attempts . | . . . Triggered . | . . . Disarmed . | . . . Reprogrammed . | . . . Reused . | . . . Traps Extracted . | . . . Installed . | . . . Triggered . | . . . Machines | -11 -10 -10 ---------- Run | Yrd Mat Min Machines Disabled . | . . . Max in Single Turn . | . . . Machines Repaired . | . . . Machines Dismantled . | . . . Machines Sabotaged . | . . . Overloaded Fab Kills . | . . . Hacking | -11 -10 -10 --------- Run | Yrd Mat Min Machines Accessed 5 | . 5 . Terminals 4 | . 4 . Fabricators . | . . . Repair Stations . | . . . Recycling Units 1 | . 1 . Scanalyzers . | . . . Garrison Access . | . . . Total Hacks 13 | . 13 . Successful 5 | . 5 . Failed 8 | . 8 . Catastrophic 3 | . 3 . Database Lockouts . | . . . Manual 5 | . 5 . Terminals 12 | . 12 . Fabricators . | . . . Repair Stations . | . . . Recycling Units 1 | . 1 . Scanalyzers . | . . . Garrison Access . | . . . Terminal Hacks 4 | . 4 . Robot Analysis 1 | . 1 . Prototype ID Bank 1 | . 1 . Locate Traps 1 | . 1 . Hauler Manifests 1 | . 1 . Fabricator Hacks . | . . . Repair Station Hacks . | . . . Recycling Unit Hacks 1 | . 1 . Report Inventory 1 | . 1 . Scanalyzer . | . . . Garrison Access Hacks . | . . . Unauthorized Hacks . | . . . Terminals . | . . . Fabricators . | . . . Repair Stations . | . . . Recycling Units . | . . . Scanalyzers . | . . . Garrison Access . | . . . Data Cores Recovered . | . . . Used . | . . . Hacking Detections 4 | . 4 . Full Trace Events . | . . . Feedback Events . | . . . Feedback Blocked . | . . . Robot Schematics Acquired . | . . . Robots Built . | . . . Authchips . | . . . Time . | . . . Total Robot Build Rating . | . . . Part Schematics Acquired . | . . . Parts Built . | . . . Authchips . | . . . Time . | . . . Total Part Build Rating . | . . . Part Studies Acquired . | . . . Parts Repaired . | . . . Time . | . . . Parts Recycled . | . . . Recycled Matter . | . . . Retrieved Matter . | . . . Retrieved Components . | . . . Parts Scanalyzed . | . . . Part Schematics Acquired . | . . . Parts Damaged . | . . . Bothacking | -11 -10 -10 ------------ Run | Yrd Mat Min Used RIF Installer . | . . . Robots Hacked . | . . . Non-combat . | . . . Combat . | . . . Robot Hacks Applied . | . . . Relay Couplers Released . | . . . Fabnet Peak Effective % . | . . . Robots Rewired . | . . . Allies Hacked . | . . . Hacks Repelled . | . . . Allies | -11 -10 -10 -------- Run | Yrd Mat Min Total Allies . | . . . Largest Group . | . . . Highest-Rated Group . | . . . Highest-Rated Ally . | . . . Total Orders . | . . . Ally Attacks . | . . . Total Damage . | . . . Kills . | . . . Allies Corrupted . | . . . Allies Melted . | . . . Intel | -11 -10 -10 ------- Run | Yrd Mat Min Active Infowar (turns) 925 | . 925 . Structural 925 | . 925 . Robot Analysis Total 1 | . 1 . Derelict Logs Recovered . | . . . Drone Launches . | . . . Drone Recoveries . | . . . Exploration | -11 -10 -10 ------------- Run | Yrd Mat Min Turns Passed 1379 | 80 1181 118 Spaces Moved 849 | 56 748 45 Core 8 | 8 . . Treads . | . . . Legs 841 | 48 748 45 Wheels . | . . . Hover . | . . . Flight . | . . . Fastest Speed 50 | 50 120 120 Average Speed 121 | 110 120 157 Slowest Speed 260 | 120 120 260 Overloaded Moves . | . . . Propulsion Burnouts . | . . . Robots Hopped . | . . . Potential Cave-ins . | . . . Cave-ins Triggered . | . . . Exploration Rate (%) 39 | 4 92 22 Regions Visited 2 Branch Regions 1 Pre-discovered Areas . | . . . Known Exits Taken 1 | . 1 . Unknown Exits Taken 1 | 1 . . Scrap Searched 1 | . . 1 Spaces Dug 2 | . 2 . Terrain Destroyed 2 | . 2 . Melee 2 | . 2 . Projectile . | . . . AOE . | . . . Terrain Rammed . | . . . Walls Destroyed . | . . . Machines Disabled . | . . . Actions | -11 -10 -10 --------- Run | Yrd Mat Min Total 1041 | 74 900 67 Wait 32 | . 27 5 Move 847 | 55 747 45 Hop . | . . . Pick Up 30 | 12 18 . Fast Attach 3 | . 3 . Attach 12 | 6 4 2 Detach 1 | . 1 . Swap 14 | 1 12 1 Drop 17 | . 17 . Fire 67 | . 67 . Melee 16 | . 2 14 Ram . | . . . Kick 2 | . 2 . Crush . | . . . Escape Stasis . | . . . Rewire . | . . . Trap . | . . . Miscellaneous . | . . . Route ------- -11/Scrapyard -10/Materials (discovered 5 exits: *Mat x3 / *Min x2) -10/Mines History --------- Turn | Location | Event 14 | -11/Scrapyard | Discovered new exit (range 15) 81 | -11/Scrapyard | Entered Materials 185 | -10/Materials | Discovered new exit (range 5) 311 | -10/Materials | Build established: Mutant 384 | -10/Materials | Discovered new exit (range 7) 581 | -10/Materials | Derelicts attacked the area 688 | -10/Materials | Core integrity fell below 50% 740 | -10/Materials | Destroyed 8 combat bots 749 | -10/Materials | Discovered new exit (range 13) 909 | -10/Materials | Discovered new exit (range 13) 1056 | -10/Materials | Discovered new exit (range 9) 1115 | -10/Materials | Identified exit to Mines 1195 | -10/Materials | Identified exit to Materials 1262 | -10/Materials | Entered Mines 1263 | -10/Mines | Assembled infested the area 1297 | -10/Mines | Met a Derelict bent on vengeance 1306 | -10/Mines | Core integrity fell below 20% 1380 | -10/Mines | Destroyed by as-09276 with Assembled F-torch Last Messages --------------- 01315_ as-71699 knocked back. 01318_ Mining Claw follow-up attack on as-65534. 01319_ Aluminum Leg destroyed. 01322_ Acquired 10 matter. 01323_ Acquired 4 matter. 01324_ as-65534 suffers critical hit (Smash). 01324_ as-65534 destroyed. 01325_ Acquired 13 matter. 01327_ Acquired 3 matter. 01329_ as-71699 destroyed. 01338_ Destroyed Asb. Hover Unit. 01338_ as-81028 system corrupted by crushing effect. 01338_ as-81028 knocked back. 01343_ as-81028 destroyed. 01348_ Searching scrap... 01348_ Found Core Shielding. 01348_ Found Lrg. Storage Unit. 01348_ Found Heat Sink. 01348_ Found 40 Matter. Map ----- +----------------------------------------------------+ | ????????????????????????????????????????????? | | ????????????????????????????????????????????? | | ????????????????????????????????????????????? | | ????????????????????????????????????????????? | | ????????????????????????????????????????????? | | ????????????????????????????????????????????? | | ????????????????????????????????????????????? | | ????????????????????????????????????????????? | | ????????????????????????????????????????????? | | ????????????????????????????????????????????? | | ?????????????????? ?????????????????????????? | | ?????????????????? ?????????????????????????? | | ?????????????????? ?????????????????????????? | | ?????????????????? ????????????????????????? | | ?????????????????? ????????????????????????? | | ?????????????????? a????????????????????????? | | ???????????????????t????????????????????????? | | ??????????????????? ????????????????????????? | | ??????????????????? ????????????????????????? | | ??????????????????? ###?????????????????????? | | ??????????????????? #?????????????????????? | | ??????????????????? #????? ??????????????? | | ???????????????????# #??? ####??????????? | | ???????????????????# #??# #??????????? | | ???????###????????## ### #?????????? | | ??????## #?????### @ #?????????? | | ??????# #???## ????????? | | ??????# #### ????????? | | ???????# % t?????????? | | ???????# a #?????????? | | ???????# ??????????? | | ???????## ??????????? | | ????????## ## ??????????? | | ?????????##??## ???????????? | | ????####???#### ???????????? | | ???## ##??#%!! ???????????? | | ???# #??#%! < # ???????????? | | ???# #### #### ### ????????????? | | ???# %%#??####??## ????????????? | | ??## #####?????????? # ?????????????? | | ??# ##??####????????? ###??????????????? | | ??# ##?## #?????????? #????????????????? | | ??# ### #??????????? ????????????????? | | ??## #????????????????????????????? | | ???### ! ##????????????????????????????? | | ?????## ! #?????????????????????????????? | | ??????# !! #?????????????????????????????? | | ??????# !! #?????????????????????????????? | | ??????# #?????????????????????????????? | | ??????#### #?????????????????????????????? | +----------------------------------------------------+ Best States ------------- Heat Dissipation 25 Energy Generation 10 Energy Capacity 250 Matter Stores 300 Matter Capacity 300 Sight Range 16 Terrain Scan Density 10 Evasion (%) 55 Item Schematics ----------------- None Robot Schematics ------------------ None Fabricated ------------ Nothing Repaired ---------- Nothing Studied --------- None Alien Tech Used ----------------- None Achievements -------------- Bumper Bots Challenges ------------ None Game ------ Seed AblativeFlightArchive Manual? 0 Play Time 00:18:47 Cumulative 25.2 hours Start 2025.11.03 @ 14:26:40 End 2025.11.03 @ 14:44:13 Sessions 1 Manual Loads 0 Difficulty Rogue Special Mode None Game No. 18 Rogue 18 Adventurer 0 Explorer 0 Win Type - Total 0 Types 0/0/0/0/0/0/0/0/0/0 Lore% 12 Gallery% 22 Achievement% 13 Wizard Run 0 Options --------- Layout 1 ASCII 0 Keyboard 0 Movement Mouse Keybinds 0 Fullscreen 1 Font 32/Smallcaps Map View 50x35 Zoom Use 0% Tactical HUD 1 Map Filters NONE Filters NONE Steam 1 RUN: b8d046d6-7647-4873-9e25-7856b2bd163e